bitfinex-derivatives/quotes_ETHF0:USTF0_20250807
["timestamp","ask_amount","ask_price","bid_price","bid_amount"]
[1754603982227,2.3913,3871.2,3871.1,1.8432]
[1754603985120,1.4846,3871.2,3871.1,1.8432]
[1754603985325,1.971,3871.2,3871.1,2.3447]
[1754603985727,2.3913,3871.2,3871.1,1.8432]
[1754603986826,0.51644,3871.5,3871.2,0.51648]
[1754603987026,0.4864,3871.4,3871.2,1.41078]
[1754603987322,0.9367,3871.8,3871.4,0.51645]
[1754603987526,1.3917,3871.7,3871.6,0.9489]
[1754603987735,1.3917,3871.7,3871.6,1.8432]
[1754603987932,0.9714,3871.7,3871.6,2.3447]
[1754603988332,2.3913,3871.7,3871.6,2.3447]
[1754603988721,0.5132,3871.9,3871.8,2.3447]
[1754603989631,1.971,3872.2,3872.1,0.9489]
[1754603989831,2.3913,3872.2,3872.1,1.8432]
[1754603993135,2.3913,3872.2,3872.1,2.35956]
[1754603993333,2.3913,3872.2,3872.1,1.8432]
[1754603993533,2.3913,3872.2,3871.9,0.51638]
[1754603993728,0.9714,3872.0,3871.9,1.8432]
[1754603993929,2.3913,3872.0,3871.9,1.3582]
[1754603994632,2.3913,3872.0,3871.9,1.8432]
[1754603995937,2.3913,3872.0,3871.9,1.0321]
[1754603996133,2.3913,3872.0,3871.9,1.3582]
[1754603996324,2.3913,3872.0,3871.9,1.8432]
[1754603996729,2.3913,3872.0,3871.8,1.51639]
[1754603996937,2.3913,3871.9,3871.8,2.87459]
[1754603997136,2.3913,3871.9,3871.8,3.35959]
[1754603998934,2.3913,3871.9,3871.8,2.8432]
[1754603999736,2.3913,3871.9,3871.8,1.7342]
[1754604000034,2.3913,3871.9,3871.8,2.8432]
[1754604000225,2.3913,3871.9,3871.8,1.0]
[1754604000937,0.8499,3871.9,3871.8,1.9489]
[1754604001133,2.19459718,3873.2,3871.8,1.9489]
[1754604001134,55.6593,3872.8,3872.2,0.4093]
[1754604001435,0.3367,3872.4,3872.3,6.06884]
[1754604001729,0.4864,3872.7,3872.5,0.5163]
[1754604001934,1.9677,3872.8,3872.7,2.34538]
[1754604002235,0.927,3872.8,3872.6,0.51629]
[1754604002439,2.2943,3872.7,3872.6,0.84869]
[1754604002629,2.2943,3872.7,3872.6,1.1269]
[1754604002829,0.7884,3872.7,3872.6,1.8291]
[1754604003031,1.4938,3872.7,3872.6,1.8291]
[1754604003532,2.2943,3872.7,3872.6,1.8291]
[1754604005535,2.2943,3872.7,3872.6,2.8291]
[1754604008136,2.81057,3872.7,3872.6,2.8291]
[1754604008331,2.81057,3872.7,3872.6,2.3578]
[1754604008531,2.81057,3872.7,3872.6,1.0]
[1754604009827,2.2943,3872.7,3872.6,1.3324]
[1754604010028,2.2943,3872.7,3872.6,2.8291]
[1754604010228,2.2943,3872.7,3872.6,1.9399]
[1754604010434,2.2943,3872.7,3872.6,1.3324]
[1754604010732,2.2943,3872.7,3872.6,3.317]
[1754604011238,2.2943,3872.7,3872.6,1.0]
[1754604011628,2.2943,3872.7,3872.6,2.8291]
[1754604011834,2.2943,3872.7,3872.6,2.3578]
[1754604012139,2.2943,3872.7,3872.6,3.317]
[1754604013139,1.8625,3872.7,3872.6,3.317]
[1754604013440,2.2943,3872.7,3872.6,1.3324]
[1754604014841,2.2943,3872.7,3872.6,1.7503]
[1754604015239,2.2943,3872.7,3872.6,1.3324]
[1754604015543,2.2943,3872.7,3872.6,1.0]
[1754604016537,20.3163,3872.7,3872.6,0.0357]
[1754604016746,2.2943,3871.8,3871.7,6.05689]
[1754604019037,21.2298,3872.7,3871.7,6.05689]
[1754604019038,2.2943,3872.4,3872.3,2.84901]
[1754604019243,1.4007,3872.4,3872.3,6.05681]
[1754604020046,2.2943,3872.7,3872.6,2.84898]
[1754604020749,2.2943,3872.7,3872.6,0.6167]
[1754604021445,2.2943,3872.7,3872.5,0.51629]
[1754604021647,1.5059,3872.6,3872.5,0.84869]
[1754604021842,2.2943,3872.6,3872.5,2.05449]
[1754604023650,2.2943,3872.6,3872.5,1.5382]
[1754604023948,0.927,3872.5,3872.4,0.5163]
[1754604024145,2.2943,3872.5,3872.3,3.72411]
[1754604024449,2.2943,3872.4,3872.3,5.26231]
[1754604025248,2.2943,3872.4,3872.3,5.58551]
[1754604025439,0.3266,3872.7,3872.6,0.6167]
[1754604025645,0.927,3872.7,3872.6,1.8614]
[1754604025845,0.927,3872.7,3872.6,2.3327]
[1754604026046,1.8206,3872.7,3872.6,2.3327]
[1754604026248,2.2943,3872.7,3872.6,2.3327]
[1754604029149,2.2943,3872.7,3872.6,1.8614]
[1754604030750,2.2943,3872.7,3872.6,0.6167]
[1754604032256,0.9336,3872.4,3872.3,5.26681]
[1754604032458,2.3395,3872.4,3872.3,5.26681]
[1754604032659,2.3395,3872.4,3872.3,3.2078]
[1754604032957,0.51641,3871.7,3871.4,3.2078]
[1754604033156,2.3395,3871.5,3871.4,3.2078]
[1754604033354,2.85593,3871.5,3871.4,3.2078]
[1754604033761,0.51646,3871.3,3871.0,3.2078]
[1754604033960,2.3395,3871.1,3871.0,4.7702]
[1754604034859,2.3395,3871.1,3871.0,5.104]
[1754604035157,2.3395,3871.1,3871.0,5.5647]
[1754604037358,2.3395,3871.1,3871.0,5.104]
[1754604037954,2.3395,3871.1,3871.0,3.829]
[1754604038653,2.3395,3871.1,3871.0,4.7702]
[1754604042361,2.3395,3871.1,3871.0,5.104]
[1754604042560,2.3395,3871.1,3871.0,5.5647]
[1754604043156,0.9336,3871.4,3871.3,1.13764]
[1754604043363,0.9336,3871.4,3871.3,2.87334]
[1754604043364,2.3395,3871.4,3871.3,2.87334]
[1754604043559,1.4196,3871.4,3871.3,2.87334]
[1754604043863,1.9012,3871.4,3871.3,2.87334]
[1754604044163,2.3395,3871.4,3871.3,2.87334]
[1754604044359,1.4196,3871.4,3871.3,2.87334]
[1754604044558,2.3395,3871.7,3871.6,2.87331]
[1754604044754,2.85585,3872.1,3872.0,0.51636]
[1754604044963,2.3395,3872.1,3872.0,6.08106]
[1754604045161,1.4196,3872.1,3872.0,6.08106]
[1754604045355,2.029,3872.4,3872.3,1.60442]
[1754604045561,1.4196,3872.4,3872.3,2.87322]
[1754604045865,2.3395,3872.7,3872.6,1.47128]
[1754604046163,2.3395,3872.7,3872.6,2.87318]
[1754604047159,2.3395,3872.7,3872.6,2.38478]
[1754604047370,2.3395,3872.7,3872.6,2.87318]
[1754604048560,1.1244,3872.7,3872.6,2.87318]
[1754604048754,2.3395,3873.0,3872.9,1.47124]
[1754604048958,2.3395,3873.0,3872.9,6.08094]
[1754604049659,2.3395,3873.0,3872.9,5.5647]
[1754604051063,40.91294,3873.7,3873.3,0.51618]
[1754604051364,1.4059,3873.6,3873.4,0.4528]
[1754604051567,2.3395,3873.5,3873.4,0.4528]
[1754604051754,2.3395,3873.5,3873.4,0.7725]
[1754604052260,2.3395,3873.5,3873.4,1.074]
[1754604052768,2.3395,3873.5,3873.4,1.5624]
[1754604054972,2.85567,3873.4,3873.3,3.2078]
[1754604055261,2.85567,3873.4,3873.3,3.829]
[1754604055474,2.85567,3873.4,3873.3,4.7702]
[1754604057267,2.85567,3873.4,3873.3,1.5624]
[1754604057568,2.3395,3873.1,3873.0,1.0]
[1754604059460,1.44983,3873.0,3872.9,3.2078]
[1754604059666,2.85573,3873.0,3872.9,3.2078]
[1754604060361,1.29043,3873.5,3872.5,3.2078]
[1754604060362,2.3395,3872.6,3872.5,3.2078]
[1754604060562,2.85579,3872.5,3872.4,1.0]
[1754604061465,1.44989,3872.5,3872.1,0.51633]
[1754604061675,2.2984,3872.4,3872.3,1.8337]
[1754604061968,2.2984,3872.4,3872.3,1.0114]
[1754604062165,2.2984,3872.4,3872.3,0.6008]
[1754604062564,2.2984,3872.4,3872.3,1.5068]
[1754604062863,2.2984,3872.4,3872.3,2.277]
[1754604064966,2.2984,3872.4,3872.3,1.8337]
[1754604065371,2.2984,3872.4,3872.3,1.5068]
[1754604066674,2.2984,3872.4,3872.3,1.8337]
[1754604066974,0.4674,3872.3,3872.1,0.906]
[1754604067171,1.3891,3872.2,3872.1,2.277]
[1754604067968,2.2984,3872.2,3872.1,2.277]
[1754604068370,0.51633,3872.3,3872.2,1.3493]
[1754604068568,0.51633,3872.3,3872.2,2.277]
[1754604068872,0.98373,3872.3,3872.2,2.277]
[1754604069173,1.61333,3872.3,3872.2,2.277]
[1754604069375,2.09973,3872.3,3872.2,1.8337]
[1754604069574,2.81473,3872.3,3872.2,2.277]
[1754604070168,2.81473,3872.3,3872.2,0.6008]
[1754604071172,2.39185,3872.1,3872.0,3.2078]
[1754604071375,2.81475,3872.1,3872.0,5.0415]
[1754604071670,0.2999,3872.1,3872.0,5.4848]
[1754604071873,0.7673,3872.1,3872.0,5.4848]
[1754604072072,0.2999,3872.1,3872.0,5.4848]
[1754604072273,1.63232,3872.3,3872.2,0.9277]
[1754604072473,2.09972,3872.3,3872.2,2.277]
[1754604072878,2.39182,3872.3,3872.2,2.277]
[1754604073178,2.39182,3872.3,3872.2,0.3195]
[1754604073374,2.39182,3872.3,3872.2,0.6008]
[1754604073575,2.81472,3872.3,3872.2,1.0114]
[1754604074179,2.81472,3872.3,3872.2,1.5068]
[1754604074682,2.81472,3872.3,3872.2,1.8337]
[1754604075180,2.81475,3872.1,3872.0,3.7032]
[1754604075375,2.81475,3872.1,3871.9,0.51637]
[1754604075376,1.3767,3872.0,3871.9,1.0]
[1754604075577,2.2984,3872.0,3871.9,1.0]
[1754604076981,2.2984,3871.7,3871.6,2.277]
[1754604078082,1.3891,3871.7,3871.6,2.277]
[1754604078479,2.2984,3871.7,3871.6,2.277]
[1754604079685,2.8148,3871.7,3871.6,2.277]
[1754604079879,3.2078,3872.4,3871.7,0.5164]
[1754604079880,0.98376,3872.1,3871.7,0.5164]
[1754604080183,1.90546,3872.1,3872.0,2.277]
[1754604080384,2.2984,3872.1,3872.0,2.277]
[1754604080583,1.8755,3872.1,3872.0,2.277]
[1754604080890,0.4674,3872.2,3872.1,1.6688]
[1754604081077,0.4674,3872.2,3872.1,2.277]
[1754604081684,0.4674,3873.0,3872.4,1.3493]
[1754604081888,2.32823,3873.0,3872.9,2.277]
[1754604082478,2.81463,3873.0,3872.9,2.277]
[1754604083788,2.2984,3873.0,3872.9,2.277]
[1754604084487,2.2984,3873.0,3872.9,5.4848]
[1754604086488,0.51619,3873.4,3872.9,5.0415]
[1754604086685,0.51611,3873.9,3873.6,1.3493]
[1754604086985,3.2078,3874.8,3873.9,2.277]
[1754604087189,5.0198,3874.8,3874.7,1.6763]
[1754604087583,3.2078,3875.2,3875.0,0.3195]
[1754604087792,5.5062,3875.2,3875.1,1.6763]
[1754604088291,2.2984,3875.2,3875.1,1.6763]
[1754604089789,0.9217,3875.2,3875.1,1.6763]
[1754604089994,1.812,3875.2,3875.1,1.6763]
[1754604091883,0.4085,3876.0,3875.5,0.51588]
[1754604092189,3.7236,3876.2,3875.9,1.6137]
[1754604092497,1.89475,3876.6,3876.5,1.6137]
[1754604092694,2.30325,3876.6,3876.5,1.6137]
[1754604092899,1.7875,3876.6,3876.5,1.6137]
[1754604093092,2.2609,3876.6,3876.5,1.6137]
[1754604093300,3.2609,3877.0,3876.9,1.6137]
[1754604093799,1.0,3877.0,3876.9,1.6137]
[1754604095395,0.2974,3876.8,3876.7,4.2078]
[1754604095700,2.2609,3876.8,3876.7,1.0]
[1754604097103,20.2079,3876.8,3876.7,1.3242]
[1754604097305,20.2079,3876.8,3876.7,1.7887]
[1754604097506,20.2079,3876.8,3876.7,0.7887]
[1754604097705,20.2079,3876.8,3876.7,0.3242]
[1754604099401,1.13531,3876.1,3876.0,1.6263]
[1754604099606,2.30331,3876.1,3876.0,2.6137]
[1754604099900,1.43271,3876.1,3876.0,2.6137]
[1754604100106,1.13521,3876.1,3876.0,2.6137]
[1754604101003,0.51581,3876.1,3876.0,2.6137]
[1754604101307,2.77671,3876.1,3876.0,1.3242]
[1754604101807,1.13527,3875.7,3875.6,0.825]
[1754604102007,2.31467,3875.7,3875.6,1.6137]
[1754604102308,2.31467,3875.7,3875.6,2.6137]
[1754604102508,2.77677,3875.7,3875.6,2.6137]
[1754604102809,0.51587,3875.7,3875.6,2.6137]
[1754604103106,2.77677,3875.7,3875.6,2.6137]
[1754604103910,2.2609,3875.7,3875.6,2.6137]
[1754604104105,2.2609,3875.7,3875.6,2.0908]
[1754604104307,2.2609,3875.7,3875.6,1.0]
[1754604104912,2.2609,3875.7,3875.6,1.3242]
[1754604105917,2.2609,3875.7,3875.6,0.3242]
[1754604106711,0.51588,3875.6,3875.5,3.2078]
[1754604106917,2.77678,3875.6,3875.5,3.2078]
[1754604107109,1.43281,3875.4,3875.3,1.3242]
[1754604107409,2.77681,3875.4,3875.3,1.0]
[1754604107610,2.2609,3874.8,3874.7,3.2078]
[1754604107817,2.2609,3874.8,3874.7,5.0281]
[1754604109314,2.2609,3874.8,3874.7,3.2078]
[1754604109509,0.516,3874.7,3874.4,0.4332]
[1754604109710,2.2609,3874.5,3874.4,2.2535]
[1754604110816,2.77693,3874.5,3874.4,2.2535]
[1754604111117,2.77693,3874.5,3874.4,1.8203]
[1754604111314,1.43293,3874.5,3874.3,3.2078]
[1754604111517,2.2609,3874.4,3874.3,4.726]
[1754604111717,2.2609,3874.4,3874.3,3.2078]
[1754604111922,2.2609,3874.4,3874.3,3.532]
[1754604112418,1.344,3874.4,3874.0,0.8979]
[1754604112613,1.43298,3874.1,3873.8,3.2078]
[1754604112822,0.9169,3873.9,3873.8,3.8281]
[1754604113113,0.9169,3873.9,3873.8,1.5182]
[1754604113114,2.2609,3873.9,3873.8,1.5182]
[1754604113318,0.9169,3873.8,3873.4,3.2078]
[1754604113616,1.344,3873.1,3872.6,3.2078]
[1754604113811,2.2609,3872.7,3872.6,3.532]
[1754604114017,2.77717,3872.7,3872.6,3.2078]
[1754604114316,2.2609,3872.7,3872.6,3.2078]
[1754604114510,2.2609,3872.7,3872.6,5.0281]
[1754604115015,2.77717,3872.7,3872.6,5.0281]
[1754604115420,2.2609,3872.7,3872.6,5.0281]
[1754604115615,1.344,3873.4,3872.8,0.94965]
[1754604115925,2.2609,3873.0,3872.9,2.2535]
[1754604116116,2.2609,3873.0,3872.9,1.8203]
[1754604117021,0.9355,3873.6,3872.9,0.4332]
[1754604117211,2.2609,3873.4,3873.3,2.2535]
[1754604119417,2.2609,3873.4,3873.3,1.8203]
[1754604120126,2.2609,3873.4,3872.7,3.2078]
[1754604120127,1.3903,3872.8,3872.7,5.37936]
[1754604120321,2.2609,3872.8,3872.7,5.97756]
[1754604121328,1.379,3872.8,3872.7,5.97756]
[1754604121528,1.0816,3872.8,3872.7,5.97756]
[1754604121717,0.4424,3873.3,3873.0,1.54683]
[1754604121922,21.1418,3874.0,3873.5,1.7716]
[1754604121923,1.966,3873.6,3873.5,1.7716]
[1754604122224,0.3223,3873.6,3873.5,2.2285]
[1754604122528,1.0577,3873.6,3873.5,5.4363]
[1754604122729,1.3604,3874.1,3874.0,0.9008]
[1754604123020,1.9464,3874.4,3874.3,0.80945]
[1754604123221,4.64178,3874.9,3874.8,0.9008]
[1754604123422,5.4765,3874.9,3874.8,1.8053]
[1754604123621,5.4765,3874.9,3874.8,2.2285]
[1754604123823,4.5682,3874.9,3874.8,2.2285]
[1754604124119,3.2078,3874.9,3874.8,2.2285]
[1754604124320,23.4125,3875.5,3875.4,1.8053]
[1754604124524,23.4125,3875.5,3875.4,2.2285]
[1754604125020,23.4125,3875.5,3875.4,1.5119]
[1754604125323,0.51591,3875.4,3875.1,0.8708]
[1754604125526,1.3604,3875.2,3875.1,2.2285]
[1754604125715,1.3604,3875.2,3874.6,3.2078]
[1754604125716,0.4424,3875.2,3874.7,0.9045]
[1754604125921,2.2687,3874.8,3874.7,1.5119]
[1754604126125,1.0577,3874.8,3874.7,2.2285]
[1754604126429,1.0577,3874.8,3874.7,3.2285]
[1754604126824,2.2687,3874.8,3874.7,1.0]
[1754604127829,2.2687,3874.8,3874.2,0.4476]
[1754604128130,2.2687,3874.5,3874.4,1.055]
[1754604128326,2.2687,3874.5,3874.4,1.5119]
[1754604128517,2.2687,3874.5,3874.4,1.055]
[1754604129132,2.2687,3874.5,3874.4,1.5119]
[1754604129321,2.2687,3874.5,3874.4,1.3577]
[1754604129526,2.2687,3874.5,3874.4,2.2285]
[1754604130431,1.3604,3874.5,3874.4,2.2285]
[1754604130632,2.2687,3874.5,3874.4,2.2285]
[1754604132133,2.2687,3874.5,3874.4,5.4363]
[1754604132329,0.4424,3875.1,3874.5,1.3277]
[1754604132630,0.51596,3875.0,3874.9,0.9045]
[1754604132831,1.57366,3875.0,3874.9,2.2285]
[1754604133029,2.36086,3875.0,3874.9,2.2285]
[1754604133231,2.2687,3875.0,3874.9,2.2285]
[1754604133434,0.51592,3875.3,3875.2,0.9008]
[1754604133738,3.72367,3875.7,3875.6,2.2285]
[1754604134032,4.64167,3875.7,3875.6,2.2285]
[1754604134228,5.99237,3875.7,3875.6,2.2285]
[1754604134836,5.56857,3875.7,3875.6,2.2285]
[1754604135135,4.5682,3875.7,3875.6,2.2285]
[1754604135637,3.5008,3875.7,3875.6,2.2285]
[1754604136231,3.5008,3875.7,3875.6,2.74438]
[1754604136634,3.72367,3875.7,3875.6,2.2285]
[1754604136834,3.2078,3875.7,3875.6,2.2285]
[1754604137136,0.51593,3875.2,3875.1,1.6074]
[1754604137438,2.2687,3875.2,3875.1,1.0]
[1754604137926,0.51592,3875.3,3875.1,1.6074]
[1754604138131,3.2078,3875.7,3875.6,2.2285]
[1754604138339,0.95821,3876.2,3876.0,2.2285]
[1754604138530,0.95821,3876.2,3876.1,2.2285]
[1754604138734,0.4424,3876.2,3876.1,2.2285]
[1754604139032,1.28952,3876.2,3875.5,3.2078]
[1754604139332,2.2687,3875.5,3875.4,2.2285]
[1754604139638,2.36067,3876.4,3876.3,2.2285]
[1754604139938,0.4424,3876.6,3876.5,0.9008]
[1754604140138,0.4424,3876.6,3876.5,2.2285]
[1754604140436,0.5957,3876.3,3875.9,3.2078]
[1754604140631,2.2687,3876.0,3875.9,4.2628]
[1754604140941,2.2687,3876.0,3875.9,5.4363]
[1754604141736,1.0577,3876.0,3875.9,5.4363]
[1754604142240,2.78455,3875.8,3875.7,1.0]
[1754604142739,2.2687,3875.8,3875.7,2.5119]
[1754604142934,2.78455,3875.8,3875.7,2.5119]
[1754604143341,2.78455,3875.8,3875.7,0.6074]
[1754604143635,1.28964,3875.8,3874.7,3.2078]
[1754604143845,2.78469,3874.8,3874.7,3.2078]
[1754604144032,1.57373,3874.5,3874.4,1.5119]
[1754604144230,1.57373,3874.5,3874.4,0.6074]
[1754604144231,2.78473,3874.5,3874.4,0.6074]
[1754604144439,1.86675,3874.3,3874.2,3.2078]
[1754604144741,1.86681,3873.9,3873.8,3.2078]
[1754604144942,1.86686,3873.5,3873.4,3.2078]
[1754604145335,0.4845,3874.4,3873.6,1.3863]
[1754604145542,0.4845,3874.4,3874.1,1.3863]
[1754604145741,0.4845,3874.4,3874.0,3.2078]
[1754604145742,0.51605,3874.4,3874.2,0.4569]
[1754604145939,0.51605,3874.4,3874.2,1.3863]
[1754604146140,0.51605,3874.4,3874.2,0.4476]
[1754604146338,0.51612,3873.8,3873.6,3.6647]
[1754604146647,1.86684,3873.7,3873.5,0.9387]
[1754604146844,1.3507,3873.6,3873.5,1.3863]
[1754604147141,3.2078,3874.9,3874.3,0.9294]
[1754604147334,3.2078,3874.9,3874.2,0.4569]
[1754604147335,0.93974,3875.2,3874.8,1.3863]
[1754604147534,0.51597,3875.0,3874.9,0.4569]
[1754604147840,1.86667,3875.0,3874.9,0.4569]
[1754604148446,0.9269,3875.3,3874.8,1.3863]
[1754604148746,0.51591,3875.4,3874.8,0.51599]
[1754604148947,1.3507,3875.4,3875.2,1.3863]
[1754604149144,0.51582,3876.1,3875.6,0.51587]
[1754604149438,38.44423,3877.1,3875.3,1.3863]
[1754604149439,1.3507,3876.7,3876.3,0.97269]
[1754604149640,0.51566,3877.3,3876.6,0.51575]
[1754604149840,21.64444,3877.4,3876.9,1.3863]
[1754604150441,0.51567,3877.2,3876.9,1.3863]
[1754604150643,21.64444,3877.4,3876.9,1.3863]
[1754604150943,0.5456,3877.0,3876.9,1.3863]
[1754604151345,0.5456,3877.0,3876.5,3.2078]
[1754604151643,0.51576,3876.5,3876.4,1.0]
[1754604151950,19.82716,3876.5,3876.4,0.546]
[1754604154151,0.51589,3875.5,3875.4,0.4369]
[1754604154440,1.89429,3875.5,3875.3,0.885]
[1754604154648,1.89429,3875.5,3875.4,0.4454]
[1754604154846,1.3784,3875.5,3875.4,1.3219]
[1754604155047,0.51586,3875.8,3875.3,0.546]
[1754604155448,0.51586,3875.8,3875.4,1.3219]
[1754604155640,0.51586,3875.8,3875.3,0.546]
[1754604156250,0.51586,3875.8,3875.4,1.3219]
[1754604156543,0.51571,3876.9,3876.4,1.40077]
[1754604156747,0.51563,3877.5,3876.9,1.3219]
[1754604156950,0.51568,3877.1,3876.9,0.4454]
[1754604157150,0.51568,3877.1,3876.6,0.4369]
[1754604157151,0.51571,3876.9,3876.6,0.4369]
[1754604157345,3.2078,3877.2,3876.6,0.4369]
[1754604157648,0.51558,3877.9,3877.6,0.885]
[1754604157850,0.51564,3877.5,3877.1,0.51567]
[1754604158041,0.99206,3877.3,3877.0,3.2078]
[1754604158240,4.1196,3878.0,3877.1,0.51568]
[1754604158446,4.5862,3878.0,3877.2,1.3219]
[1754604158849,1.89408,3877.1,3877.0,1.0]
[1754604159750,0.51587,3875.7,3875.5,3.2078]
[1754604159940,0.51588,3875.6,3875.1,1.3219]
[1754604160251,1.3784,3876.0,3875.2,1.3219]
[1754604160552,17.982,3876.4,3874.1,1.29018]
[1754604160553,0.51576,3876.5,3876.4,0.4454]
[1754604160743,0.98236,3876.5,3875.9,3.2078]
[1754604160949,1.89416,3876.5,3876.0,0.96122]
[1754604161151,1.89416,3876.5,3876.0,0.51582]
[1754604161343,1.3784,3876.9,3876.4,0.51577]
[1754604161549,0.51567,3877.2,3876.8,1.3219]
[1754604161747,0.51576,3876.5,3876.3,4.5297]
[1754604161949,3.42033576,3877.7,3876.6,1.3219]
[1754604162144,1.41761,3877.7,3877.5,0.4396]
[1754604162349,0.51573,3876.8,3876.6,0.8765]
[1754604162655,1.89416,3876.5,3876.3,3.2078]
[1754604163349,3.2078,3876.7,3876.3,0.885]
[1754604163549,0.51573,3876.8,3876.7,1.3219]
[1754604164057,1.89413,3876.8,3876.7,1.0]
[1754604164552,18.5146,3877.4,3876.7,2.3219]
[1754604164750,0.9118,3877.5,3877.2,3.2078]
[1754604164946,0.9822,3877.8,3877.5,1.3219]
[1754604165147,0.4764,3878.1,3877.3,3.2078]
[1754604165351,0.4764,3878.1,3877.5,0.51563]
[1754604165546,0.51564,3877.4,3877.3,3.2078]
[1754604165743,0.902,3877.5,3877.3,3.2078]
[1754604165942,0.51559,3877.8,3877.3,3.2078]
[1754604166144,1.3784,3877.8,3877.3,0.51565]
[1754604166349,0.51556,3878.0,3877.5,0.51562]
[1754604166549,18.06,3878.3,3877.6,0.4454]
[1754604166752,0.9118,3877.7,3877.3,0.51565]
[1754604167050,0.51565,3877.4,3877.1,0.4396]
[1754604167258,0.51559,3877.8,3877.2,0.51567]
[1754604167451,0.51562,3877.6,3877.2,1.3219]
[1754604167651,1.89402,3877.6,3877.3,1.3219]
[1754604167955,0.51564,3877.4,3877.3,1.3219]
[1754604168157,1.89403,3877.5,3877.3,1.3219]
[1754604168553,1.28871,3878.6,3878.1,0.4369]
[1754604168749,0.5155,3878.5,3878.1,0.51554]
[1754604168954,0.5155,3878.5,3877.9,0.51557]
[1754604169154,0.51552,3878.3,3877.8,0.51558]
[1754604169351,0.51552,3878.3,3877.7,0.51559]
[1754604169656,1.28857,3879.0,3878.0,3.2078]
[1754604169856,1.3784,3878.9,3878.0,5.04526]
[1754604170459,1.3784,3878.9,3878.0,4.5297]
[1754604170654,0.51549,3878.6,3878.4,1.3219]
[1754604171658,0.51553,3878.2,3878.1,1.0]
[1754604171850,0.5155,3878.5,3878.2,0.885]
[1754604172054,0.5155,3878.5,3878.2,1.3219]
[1754604172255,0.5155,3878.5,3878.1,1.0]
[1754604172456,0.5155,3878.5,3878.4,1.3219]
[1754604172761,1.89393,3878.2,3878.1,1.0]
[1754604172961,3.2078,3878.5,3878.2,1.3219]
[1754604172962,0.51551,3878.4,3878.2,1.3219]
[1754604173260,0.51551,3878.4,3878.3,1.3219]
[1754604173564,0.902,3879.0,3878.2,0.8823]
[1754604173761,0.4764,3879.3,3878.7,1.3219]
[1754604173963,0.4764,3879.3,3878.8,0.51545]
[1754604174159,0.19954091,3879.6,3879.0,3.2078]
[1754604174364,4.2078,3880.0,3879.2,3.2078]
[1754604174663,4.2078,3880.0,3879.4,0.4369]
[1754604174664,1.45834,3879.7,3879.4,0.4369]
[1754604174960,1.45834,3879.7,3879.6,1.3219]
[1754604175158,0.4354,3879.8,3879.0,0.51543]
[1754604175354,0.4354,3879.8,3879.1,4.5297]
[1754604175762,1.3784,3879.3,3879.1,3.6447]
[1754604176062,1.8938,3879.2,3879.1,3.6532]
[1754604176365,1.3784,3879.3,3879.2,1.0]
[1754604178966,1.28851,3879.2,3878.3,3.2078]
[1754604179267,0.51547,3878.7,3878.1,1.83744]
[1754604179467,0.51551,3878.4,3878.2,0.4454]
[1754604179667,1.3784,3878.3,3878.2,0.4454]
[1754604179868,0.51556,3878.0,3877.9,4.0901]
[1754604180265,1.42741,3877.6,3877.4,3.6532]
[1754604180467,0.4666,3878.0,3877.5,1.83753]
[1754604180764,0.9118,3878.4,3877.9,0.51557]
[1754604180967,0.51552,3878.3,3878.2,0.4454]
[1754604181172,0.943,3877.8,3877.6,0.8765]
[1754604181367,0.9822,3877.7,3877.2,4.0843]
[1754604181571,0.4384,3877.9,3877.4,1.3421]
[1754604181774,0.5156,3877.7,3877.4,1.3421]
[1754604182070,0.95403,3877.5,3877.3,1.3421]
[1754604182267,0.51562,3877.6,3877.4,0.9169]
[1754604182472,1.83432,3877.6,3877.4,1.3421]
[1754604182670,0.51565,3877.3,3877.2,3.2078]
[1754604182878,1.83435,3877.3,3877.2,3.2078]
[1754604183070,0.51571,3876.9,3876.8,3.2078]
[1754604183376,1.3187,3877.2,3876.4,3.2078]
[1754604183571,0.5158,3876.2,3876.1,0.4252]
[1754604183772,0.51579,3876.3,3876.0,1.3421]
[1754604183970,0.51584,3875.9,3875.5,3.2078]
[1754604184179,0.51584,3875.9,3875.7,0.8732]
[1754604184470,1.40863,3876.0,3875.8,1.3421]
[1754604184872,0.51582,3876.1,3875.9,0.4252]
[1754604185074,0.51582,3876.1,3876.0,0.4252]
[1754604185376,1.3187,3876.7,3876.0,0.51583]
[1754604185572,0.51574,3876.7,3876.5,0.9169]
[1754604185777,1.40854,3876.7,3876.6,0.4252]
[1754604186083,0.4259,3877.1,3876.7,0.9169]
[1754604186084,0.51569,3877.0,3876.7,0.9169]
[1754604186370,0.51572,3876.8,3876.2,0.4252]
[1754604186571,1.3187,3875.8,3875.6,0.8732]
[1754604186777,0.8928,3875.7,3875.6,0.4252]
[1754604186970,1.3187,3875.7,3875.6,0.4252]
[1754604187172,0.8928,3875.7,3875.6,0.4252]
[1754604187367,0.8928,3875.7,3875.5,3.2078]
[1754604187574,1.3187,3875.6,3875.5,3.2078]
[1754604187976,1.3187,3875.6,3875.5,1.0]
[1754604188773,4.49709,3876.9,3875.5,4.2078]
[1754604189071,0.51583,3876.0,3875.6,1.3421]
[1754604189275,0.4259,3876.5,3875.9,0.51584]
[1754604189476,1.3187,3876.5,3876.2,0.9169]